bitfinex/quotes_SOLUSD_20250130
["timestamp","ask_amount","ask_price","bid_price","bid_amount"]
[1738248935627,33.29704839,242.18,242.17,0.063]
[1738248935941,52.93126825,242.18,242.17,0.063]
[1738248936121,53.54999632,242.18,242.17,0.063]
[1738248936527,20.0,242.15,242.12,0.063]
[1738248936823,46.14342531,242.14,242.12,0.063]
[1738248937545,46.26891531,242.14,242.12,0.063]
[1738248940046,46.39440531,242.14,242.12,0.063]
[1738248940429,0.12549,242.12,242.02,0.063]
[1738248940634,0.61872807,242.11,242.02,0.063]
[1738248940831,31.98735871,242.07,242.02,0.063]
[1738248941028,52.23833871,242.03,242.02,0.063]
[1738248941257,46.26891531,242.03,242.02,0.063]
[1738248941619,14.2815566,242.03,242.02,0.063]
[1738248941955,0.61872807,242.03,242.02,0.063]
[1738248942123,0.61872807,242.07,242.02,32.05035871]
[1738248942324,0.61872807,242.1,242.04,31.98735871]
[1738248942531,0.61872807,242.1,242.02,36.18215871]
[1738248942728,31.98735871,242.03,242.02,0.063]
[1738248943027,0.12549,242.08,242.02,4.1948]
[1738248943028,0.61872807,242.08,242.02,4.1948]
[1738248943435,0.61872807,242.12,242.07,31.98735871]
[1738248943835,31.98735871,242.09,242.02,0.063]
[1738248944141,0.61872807,242.08,242.03,31.98735871]
[1738248944525,0.61872807,242.08,242.05,31.98735871]
[1738248944727,0.61872807,242.14,242.07,31.98735871]
[1738248944923,0.61872807,242.14,242.02,4.1947]
[1738248944924,0.61872807,242.14,242.13,31.98735871]
[1738248945141,6.43311764,242.18,242.13,31.98735871]
[1738248945446,6.43311764,242.18,242.17,36.11665871]
[1738248946043,1.764e-05,242.25,242.17,14.4526]
[1738248946246,0.61874571,242.25,242.19,31.98735871]
[1738248946863,32.60608678,242.25,242.17,36.11665871]
[1738248947145,31.98735871,242.21,242.13,31.98735871]
[1738248947349,0.61872807,242.2,242.13,31.98735871]
[1738248947531,0.61872807,242.2,242.07,10.3273]
[1738248947532,0.61872807,242.2,242.15,31.98735871]
[1738248948040,0.61872807,242.2,242.18,31.98735871]
[1738248948246,0.61872807,242.24,242.18,31.98735871]
[1738248948434,31.98735871,242.22,242.14,31.98735871]
[1738248948633,0.61872807,242.21,242.16,31.98735871]
[1738248948833,0.61872807,242.23,242.19,31.98735871]
[1738248949153,0.61872807,242.31,242.23,31.98735871]
[1738248949354,0.61872807,242.31,242.27,31.98735871]
[1738248949531,0.61872807,242.35,242.27,31.98735871]
[1738248949731,0.61872807,242.35,242.27,36.11485871]
[1738248950131,0.61872807,242.35,242.31,31.98735871]
[1738248950339,0.61872807,242.35,242.33,31.98735871]
[1738248950650,0.61872807,242.39,242.33,31.98735871]
[1738248951159,0.61872807,242.39,242.35,31.98735871]
[1738248951757,0.61872807,242.39,242.28,32.60640849]
[1738248951758,0.61872807,242.39,242.37,31.98735871]
[1738248952056,14.1560666,242.43,242.37,31.98735871]
[1738248953032,0.12549,242.42,242.37,31.98735871]
[1738248953261,0.61872807,242.41,242.39,31.98735871]
[1738248953633,14.2815566,242.47,242.39,31.98735871]
[1738248954458,13.66282853,242.45,242.39,36.11285871]
[1738248954661,0.03,242.39,242.37,4.1258]
[1738248955346,0.03,242.39,242.37,36.11315871]
[1738248956945,0.61872807,242.46,242.38,31.98735871]
[1738248957154,6.2925,242.55,242.45,31.98735871]
[1738248957155,0.61872807,242.53,242.45,31.98735871]
[1738248957341,45.39920724,242.52,242.45,31.98735871]
[1738248957544,13.48496335,242.51,242.45,31.98735871]
[1738248957764,13.48496335,242.51,242.47,31.98735871]
[1738248958369,13.48496335,242.51,242.49,31.98735871]
[1738248959054,12.86623528,242.51,242.49,36.11115871]
[1738248959655,0.64872807,242.56,242.49,36.11115871]
[1738248959975,0.64872807,242.56,242.55,31.98735871]
[1738248960137,0.03,242.56,242.55,31.98735871]
[1738248960548,0.03,242.56,242.53,31.98735871]
[1738248960752,0.03,242.56,242.51,31.98735871]
[1738248960952,0.03,242.56,242.51,36.11075871]
[1738248961241,0.03,242.56,242.51,4.1234]
[1738248961448,0.03,242.56,242.55,31.98735871]
[1738248961962,0.03,242.56,242.51,4.1234]
[1738248962338,0.12549,242.55,242.48,31.98735871]
[1738248962546,0.61872807,242.54,242.48,31.98735871]
[1738248962743,0.61872807,242.54,242.49,19.60583979]
[1738248962943,0.61872807,242.54,242.5,4.1237]
[1738248963654,0.61872807,242.54,242.49,19.60583979]
[1738248963949,0.61872807,242.54,242.49,23.72963979]
[1738248964366,0.61872807,242.54,242.42,10.3125]
[1738248964367,0.25098,242.53,242.47,19.60583979]
[1738248964550,33.04768832,242.56,242.38,19.60583979]
[1738248964551,0.25098,242.48,242.38,19.60583979]
[1738248964750,20.22456786,242.47,242.38,19.60583979]
[1738248965061,0.25098,242.46,242.39,4.1255]
[1738248965241,13.66282853,242.44,242.39,4.1255]
[1738248965565,0.61872807,242.43,242.36,23.73173979]
[1738248965858,0.61872807,242.43,242.4,19.60583979]
[1738248966067,13.78831853,242.46,242.38,19.60583979]
[1738248966367,0.12549,242.4,242.34,19.60583979]
[1738248966538,0.12549,242.38,242.32,19.60583979]
[1738248966744,0.25098,242.41,242.3,4.127]
[1738248966745,0.61872807,242.37,242.36,19.60583979]
[1738248966940,0.61872807,242.4,242.36,19.60583979]
[1738248967373,0.61872807,242.4,242.38,19.60583979]
[1738248967865,0.61872807,242.41,242.38,19.60583979]
[1738248968049,0.61872807,242.41,242.29,19.60583979]
[1738248968050,33.14317832,242.4,242.29,19.60583979]
[1738248968248,33.14317832,242.4,242.26,0.063]
[1738248968249,0.12549,242.33,242.26,0.063]
[1738248968453,20.22456786,242.32,242.26,0.063]
[1738248968652,0.12549,242.3,242.26,0.063]
[1738248968855,0.61872807,242.29,242.26,0.063]
[1738248969063,0.61872807,242.29,242.28,19.60583979]
[1738248969257,19.60583979,242.35,242.26,19.66883979]
[1738248969578,33.26866832,242.33,242.26,19.66883979]
[1738248969870,33.26866832,242.33,242.26,0.063]
[1738248969871,25.61343979,242.27,242.26,0.063]
[1738248970167,26.23216786,242.27,242.26,0.063]
[1738248970464,39.89499639,242.27,242.26,0.063]
[1738248970671,20.2891566,242.27,242.26,0.063]
[1738248971164,20.0381766,242.27,242.2,4.1287]
[1738248971358,0.61872807,242.26,242.19,19.60583979]
[1738248971561,20.22456786,242.26,242.17,19.60583979]
[1738248971862,0.25098,242.23,242.15,19.60583979]
[1738248972082,0.61872807,242.22,242.15,19.60583979]
[1738248972591,19.60583979,242.35,242.2,19.60583979]
[1738248972876,13.66282853,242.32,242.25,19.60583979]
[1738248973175,0.12549,242.32,242.25,19.60583979]
[1738248973590,0.12549,242.31,242.25,19.60583979]
[1738248973778,19.60583979,242.29,242.21,19.60583979]
[1738248973979,0.12549,242.31,242.23,19.60583979]
[1738248974195,19.60583979,242.34,242.25,19.60583979]
[1738248974491,25.99493979,242.39,242.29,19.60583979]
[1738248974984,19.85681979,242.35,242.25,19.60583979]
[1738248975179,19.60583979,242.37,242.27,19.60583979]
[1738248975362,19.60583979,242.37,242.29,19.60583979]
[1738248975556,19.60583979,242.35,242.27,19.60583979]
[1738248975954,13.41184853,242.38,242.31,19.60583979]
[1738248976378,6.3891,242.39,242.33,19.60583979]
[1738248976563,6.3891,242.39,242.34,4.1264]
[1738248976980,14.53575099,242.46,242.35,19.60583979]
[1738248976981,32.47207507,242.45,242.35,19.60583979]
[1738248977270,19.60583979,242.41,242.34,4.1264]
[1738248977677,0.12549,242.42,242.34,4.1264]
[1738248977887,0.12549,242.42,242.35,19.60583979]
[1738248978378,0.12549,242.42,242.36,4.126]
[1738248978588,0.12549,242.38,242.35,0.063]
[1738248978790,0.12549,242.4,242.35,0.063]
[1738248978969,19.73132979,242.41,242.35,0.063]
[1738248978970,0.12549,242.41,242.35,23.79503979]
[1738248979174,33.26866832,242.45,242.35,23.79503979]
[1738248979561,19.60583979,242.41,242.35,4.1892]
[1738248979762,0.12549,242.42,242.35,23.79503979]
[1738248979980,0.12549,242.44,242.37,19.60583979]
[1738248980177,0.12549,242.44,242.39,19.60583979]
[1738248980567,0.12549,242.44,242.4,4.1254]
[1738248980774,0.12549,242.45,242.4,4.1254]
[1738248981094,14.53575099,242.46,242.41,19.60583979]
[1738248981387,45.33831036,242.54,242.45,19.60583979]
[1738248981566,13.41184853,242.53,242.45,19.60583979]
[1738248981987,19.60583979,242.52,242.43,19.60583979]
[1738248982383,25.73247057,242.54,242.47,19.60583979]
[1738248982598,25.73247057,242.54,242.49,19.60583979]
[1738248982765,25.73247057,242.54,242.53,19.60583979]
[1738248983087,0.03,242.56,242.53,19.60583979]
[1738248983298,0.03,242.56,242.51,19.60583979]
[1738248983803,0.03,242.56,242.53,19.60583979]
[1738248983985,0.03,242.56,242.54,4.123]
[1738248985590,0.03,242.56,242.54,3.66025015]
[1738248985892,0.03,242.56,242.55,19.60583979]
[1738248986464,0.03,242.56,242.54,3.66025015]
[1738248988081,0.03,242.56,242.53,19.60583979]
[1738248988394,0.03,242.56,242.51,19.60583979]
[1738248988591,0.03,242.56,242.53,19.60583979]
[1738248989688,0.15549,242.56,242.49,4.1238]
[1738248989989,0.15549,242.56,242.41,0.61853182]
[1738248989990,0.25098,242.52,242.46,4.1243]
[1738248990202,0.03,242.56,242.46,4.1243]
[1738248990203,19.60583979,242.51,242.46,4.1243]
[1738248990492,19.60583979,242.51,242.42,4.125]
[1738248991491,13.53733853,242.52,242.43,19.60583979]
[1738248991665,19.60583979,242.53,242.42,14.4376]
[1738248991869,0.03,242.56,242.42,14.4376]
[1738248991870,19.60583979,242.55,242.46,19.60583979]
[1738248992110,13.53733853,242.54,242.47,4.1242]
[1738248992272,0.12549,242.54,242.48,19.60583979]
[1738248992477,0.03,242.56,242.5,19.60583979]
[1738248992675,0.03,242.56,242.54,19.60583979]
[1738248994490,0.03,242.56,242.55,4.1228]
[1738248994872,0.03,242.56,242.55,4.74127004]
[1738248994873,0.0001,242.56,242.55,4.74127004]
[1738248995775,0.03,242.64,242.57,1.0]
[1738248995984,0.03,242.64,242.63,19.60583979]
[1738248996371,0.03,242.64,242.63,23.72733979]
[1738248997588,13.56733853,242.64,242.55,19.60583979]
[1738248997768,19.76132979,242.64,242.55,19.60583979]
[1738248997969,0.03,242.64,242.59,19.60583979]
[1738248998385,0.03,242.64,242.61,19.60583979]
[1738248998587,0.03,242.64,242.63,19.60583979]
[1738248998887,0.03,242.64,242.63,31.81833727]
[1738248999087,0.03,242.64,242.63,63.63667454]
[1738248999088,0.0001,242.64,242.63,63.63667454]
[1738248999388,0.0001,242.66,242.63,64.63667454]
[1738248999691,0.0001,242.66,242.65,31.81833727]
[1738249000090,38.59870585,242.76,242.65,31.81833727]
[1738249000390,38.59870585,242.76,242.75,31.81833727]
[1738249001574,38.59870585,242.76,242.75,35.93773727]
[1738249005985,38.59870585,242.76,242.71,31.81833727]
[1738249006300,38.59870585,242.76,242.66,4.1209]
[1738249006301,38.59870585,242.76,242.68,31.81833727]
[1738249006591,45.3556758,242.75,242.66,35.93923727]
[1738249006974,31.81833727,242.75,242.66,35.93923727]
[1738249007192,31.81833727,242.75,242.68,31.81833727]
[1738249007388,13.53733853,242.74,242.68,31.81833727]
[1738249007598,19.68573853,242.74,242.66,35.93923727]
[1738249007788,0.12549,242.69,242.62,31.81833727]
[1738249008093,31.94382727,242.69,242.6,35.94013727]
[1738249008685,31.94382727,242.69,242.62,31.81833727]
[1738249008885,16.43930585,242.76,242.68,31.81833727]
[1738249009096,5.96990585,242.76,242.75,31.81833727]
[1738249011389,5.96990585,242.76,242.75,63.63667454]
[1738249012703,5.96990585,242.76,242.75,64.25444191]
[1738249013505,5.96990585,242.76,242.75,31.81833727]
[1738249014798,5.96990585,242.76,242.75,63.63667454]
[1738249015510,5.96990585,242.76,242.75,31.81833727]
[1738249016183,5.96990585,242.76,242.75,63.63667454]
[1738249017185,5.96990585,242.76,242.75,64.63667454]
[1738249017505,5.96990585,242.76,242.75,63.63667454]
[1738249017800,5.96990585,242.76,242.75,31.81833727]
[1738249018388,5.96990585,242.76,242.73,31.81833727]
[1738249018691,5.96990585,242.76,242.69,31.81833727]
[1738249019492,5.96990585,242.76,242.73,31.81833727]
[1738249019693,5.96990585,242.76,242.75,31.81833727]
[1738249020309,5.96990585,242.76,242.73,31.81833727]
[1738249021182,5.96990585,242.76,242.75,31.81833727]
[1738249022487,0.25098,242.86,242.75,31.81833727]
[1738249022812,0.12549,242.86,242.8,31.81833727]
[1738249023509,0.37941457,242.9,242.84,31.81833727]
[1738249024012,0.37941457,242.9,242.86,31.81833727]
[1738249024215,0.37941457,242.9,242.84,31.81833727]
[1738249024415,31.81833727,242.85,242.73,0.61773233]
[1738249024713,20.0,242.71,242.58,0.61797637]
[1738249024896,20.0,242.71,242.51,1.0]
[1738249024897,31.81833727,242.6,242.53,31.81833727]
[1738249025209,1.0,242.68,242.48,0.063]
[1738249025429,13.66282853,242.69,242.48,0.063]
[1738249025712,7.87388,242.65,242.48,0.063]
[1738249026118,31.81833727,242.61,242.52,31.81833727]
[1738249026503,31.81833727,242.63,242.55,31.81833727]
[1738249027012,31.81833727,242.57,242.48,0.063]
[1738249027230,31.81833727,242.51,242.48,0.063]
[1738249027513,31.81833727,242.49,242.48,0.063]
[1738249028200,31.94382727,242.49,242.48,0.063]
[1738249029008,32.19480727,242.49,242.48,0.063]
[1738249030418,13.78831853,242.43,242.42,0.063]
[1738249030605,52.19480727,242.43,242.42,0.063]
[1738249031702,95.6066558,242.43,242.42,0.063]
[1738249031901,0.37647,242.36,242.23,0.063]
[1738249032116,30.0,242.34,242.23,0.063]
[1738249032397,31.81833727,242.31,242.24,31.81833727]
[1738249033099,0.12549,242.32,242.24,31.81833727]
[1738249033302,31.81833727,242.33,242.24,31.81833727]
[1738249033812,31.81833727,242.31,242.24,31.81833727]
[1738249034410,20.0,242.28,242.24,31.81833727]
[1738249034620,31.81833727,242.25,242.23,0.063]
[1738249035704,31.81833727,242.31,242.23,0.063]
[1738249035899,31.81833727,242.32,242.23,31.88133727]
[1738249036325,31.81833727,242.3,242.23,31.88133727]
[1738249036729,31.81833727,242.28,242.23,0.063]
[1738249037798,31.81833727,242.3,242.23,31.88133727]
[1738249038002,31.81833727,242.32,242.23,31.88133727]
[1738249038926,31.81833727,242.28,242.23,0.063]
[1738249039923,31.81833727,242.3,242.23,0.063]
[1738249040434,31.81833727,242.28,242.23,0.063]
[1738249040647,31.81833727,242.26,242.23,0.063]
[1738249041033,31.81833727,242.24,242.23,0.063]
[1738249041757,51.81833727,242.26,242.23,0.063]
[1738249041940,31.81833727,242.26,242.23,0.063]
[1738249042247,31.81833727,242.32,242.23,31.88133727]
[1738249043889,31.81833727,242.27,242.23,0.063]
[1738249044255,31.81833727,242.29,242.23,0.063]
[1738249044856,31.81833727,242.27,242.23,0.063]
[1738249045040,31.81833727,242.29,242.23,0.063]
[1738249046878,31.81833727,242.27,242.23,0.063]
[1738249048655,20.0,242.28,242.23,31.88133727]
[1738249049040,31.81833727,242.31,242.23,31.88133727]
[1738249049245,31.81833727,242.29,242.23,0.063]
[1738249050569,31.81833727,242.31,242.23,31.88133727]
[1738249051150,31.81833727,242.29,242.23,0.063]
[1738249051349,31.81833727,242.25,242.23,0.063]
[1738249051953,51.81833727,242.27,242.23,0.063]
[1738249052257,13.41184853,242.3,242.23,0.063]
[1738249052258,31.81833727,242.29,242.23,0.063]
[1738249052568,31.81833727,242.31,242.23,31.88133727]
[1738249052752,31.81833727,242.29,242.23,0.063]
[1738249055275,31.81833727,242.27,242.23,0.063]
[1738249055958,31.81833727,242.29,242.23,0.063]
[1738249056280,31.81833727,242.31,242.23,31.88133727]
[1738249056480,31.81833727,242.33,242.25,31.81833727]
[1738249056887,19.64312669,242.33,242.25,19.64312669]
[1738249059043,19.67312669,242.37,242.29,19.64312669]
[1738249059237,19.64312669,242.33,242.25,19.64312669]
[1738249060556,19.64312669,242.31,242.23,19.70612669]
[1738249061955,19.64312669,242.29,242.23,0.063]
[1738249062965,0.03,242.37,242.23,0.063]
[1738249062966,19.64312669,242.33,242.25,19.64312669]
[1738249063351,0.03,242.37,242.31,19.64312669]
[1738249066572,19.67312669,242.37,242.29,19.64312669]
[1738249066863,0.03,242.37,242.31,19.64312669]
[1738249067172,0.03,242.37,242.23,1.063]
[1738249067173,0.03,242.37,242.33,19.64312669]
[1738249068437,0.03,242.37,242.31,19.64312669]
[1738249069436,19.67312669,242.37,242.29,19.64312669]
[1738249069639,19.64312669,242.35,242.27,19.64312669]
[1738249070773,19.64312669,242.33,242.25,19.64312669]
[1738249071061,0.03,242.37,242.23,0.063]
[1738249071062,19.64312669,242.35,242.27,19.64312669]
[1738249071278,19.64312669,242.31,242.23,0.063]
[1738249071577,19.67312669,242.37,242.28,19.64312669]
[1738249071871,19.64312669,242.35,242.28,19.64312669]
[1738249072073,19.64312669,242.33,242.24,19.64312669]
[1738249072234,19.64312669,242.29,242.23,0.063]
[1738249072434,19.64312669,242.25,242.23,0.063]
[1738249073059,19.64312669,242.27,242.23,0.063]
[1738249073449,19.64312669,242.25,242.23,0.063]
[1738249074065,13.41184853,242.24,242.23,0.063]
[1738249074966,19.64312669,242.25,242.23,0.063]
[1738249075172,19.64312669,242.27,242.23,0.063]
[1738249076467,19.64312669,242.25,242.23,0.063]
[1738249079689,19.64312669,242.27,242.23,0.063]
[1738249079844,25.94402669,242.29,242.23,0.063]
[1738249080044,19.64312669,242.29,242.23,0.063]
[1738249080372,19.64312669,242.31,242.23,0.063]
[1738249080871,19.64312669,242.29,242.23,0.063]
[1738249081078,0.29390138,242.28,242.2,19.64312669]
[1738249081253,0.29390138,242.28,242.22,19.64312669]
[1738249081455,19.64312669,242.29,242.22,19.64312669]
[1738249081666,0.29390138,242.28,242.2,19.64312669]
[1738249081869,0.29390138,242.32,242.24,19.64312669]
[1738249082879,0.29390138,242.33,242.26,19.64312669]
[1738249084170,19.64312669,242.32,242.22,19.64312669]
[1738249084467,19.64312669,242.32,242.12,13.53733853]
[1738249084468,19.64312669,242.24,242.14,19.64312669]
[1738249084767,19.64312669,242.22,242.14,19.64312669]
[1738249084972,0.29390138,242.21,242.14,19.64312669]
[1738249085469,19.64312669,242.15,242.13,0.063]
[1738249085675,0.29390138,242.14,242.13,0.063]
[1738249086572,13.70574991,242.14,242.13,0.063]
[1738249087780,63.41184853,242.11,242.02,0.063]
[1738249088076,19.64312669,242.04,242.02,0.063]
[1738249088279,0.29390138,242.03,242.02,0.063]
[1738249088857,0.41939138,242.03,242.02,0.063]
[1738249089068,13.83123991,242.03,242.02,0.063]
[1738249089862,13.95672991,242.03,242.02,0.063]
[1738249091161,0.54488138,242.03,242.02,0.063]
[1738249091490,14.08221991,242.03,242.02,0.063]
[1738249092054,44.08221991,242.03,242.02,0.063]
[1738249093579,14.08221991,242.03,242.02,0.063]
[1738249094669,0.54488138,242.03,242.02,0.063]
[1738249094862,0.29390138,242.03,242.02,0.063]
[1738249095060,13.36507763,242.05,242.02,0.063]
[1738249095061,0.29390138,242.04,242.02,0.063]
[1738249095262,13.36507763,242.05,242.02,0.063]
[1738249095466,19.93702807,242.04,242.02,0.063]
[1738249096075,13.78831853,242.03,242.02,0.063]
[1738249096295,19.93702807,242.04,242.02,0.063]
[1738249096485,0.29390138,242.04,242.02,0.063]
[1738249096682,0.29390138,242.05,242.02,0.063]
[1738249096893,20.0,242.03,242.02,0.063]
[1738249097070,0.29390138,242.05,242.02,0.063]
[1738249097477,0.29390138,242.07,242.02,0.063]
[1738249098171,20.29390138,242.07,242.02,0.063]
[1738249098363,0.29390138,242.07,242.04,19.64312669]
[1738249098567,6.4132,242.14,242.13,26.50297193]
[1738249098788,39.59366522,242.14,242.13,26.50297193]
[1738249100269,69.59366522,242.14,242.13,26.50297193]
[1738249100476,20.12549,242.1,242.02,0.063]
[1738249100674,19.76861669,242.03,242.02,0.063]
[1738249100876,33.18046522,242.03,242.02,0.063]
[1738249102297,19.76861669,242.03,242.02,0.063]
[1738249103085,0.12549,242.03,242.02,0.063]
[1738249103287,19.64312669,242.07,242.02,0.063]
[1738249103488,19.64312669,242.11,242.02,19.70612669]
[1738249103673,19.64312669,242.13,242.04,19.64312669]
[1738249104088,19.64312669,242.11,242.02,19.70612669]
[1738249104404,19.64312669,242.09,242.02,0.063]
[1738249104603,19.64312669,242.09,242.02,19.70612669]
[1738249104893,13.22920363,242.14,242.02,19.70612669]
[1738249104894,19.64312669,242.11,242.02,19.70612669]
[1738249105277,19.64312669,242.11,242.04,19.64312669]
[1738249105681,19.64312669,242.11,242.02,19.70612669]
[1738249105882,19.64312669,242.09,242.02,19.70612669]
[1738249106387,19.64312669,242.11,242.02,19.70612669]
[1738249107405,19.64312669,242.13,242.04,19.64312669]
[1738249107997,13.22920363,242.14,242.08,19.64312669]
[1738249108517,19.76861669,242.13,242.04,19.64312669]
[1738249109705,19.64312669,242.11,242.04,19.64312669]
[1738249111199,0.12549,242.13,242.02,0.063]
[1738249111200,20.12549,242.03,242.02,0.063]
[1738249111411,53.18046522,242.03,242.02,0.063]
[1738249111604,33.53733853,242.03,242.02,0.063]
[1738249111786,20.12549,242.03,242.02,0.063]
[1738249111980,33.53733853,242.03,242.02,0.063]
[1738249112491,33.53733853,242.03,241.99,0.063]
[1738249112692,39.28625338,242.04,241.99,0.063]
[1738249112693,53.05497522,242.0,241.99,0.063]
[1738249112991,43.41184853,241.99,241.98,0.063]
[1738249113190,45.41184853,241.99,241.88,0.063]
[1738249113499,33.05497522,241.98,241.88,0.063]
[1738249115394,33.18046522,241.98,241.88,0.063]
[1738249116196,50.0,241.95,241.88,0.063]
[1738249116378,19.76861669,241.89,241.88,0.063]
[1738249116985,19.64312669,241.91,241.88,0.063]
[1738249117285,19.64312669,241.93,241.88,0.063]
[1738249117492,0.12549,241.92,241.88,0.063]
[1738249119190,19.64312669,241.91,241.88,0.063]
[1738249119599,19.64312669,241.93,241.88,0.063]
[1738249120125,19.64312669,241.89,241.88,0.063]
[1738249122811,19.64312669,241.93,241.88,0.063]
[1738249123496,1.0,242.03,241.88,0.063]
[1738249123497,19.64312669,241.95,241.88,0.063]
[1738249123691,0.12549,241.94,241.88,0.063]
[1738249124322,19.64312669,241.93,241.88,0.063]
[1738249124612,0.12549,241.92,241.88,0.063]
[1738249124785,19.76861669,241.89,241.88,0.063]
[1738249124989,33.18046522,241.89,241.88,0.063]
[1738249125395,19.76861669,241.89,241.88,0.063]
[1738249125599,20.0,241.89,241.88,0.063]
[1738249126102,20.12549,241.89,241.88,0.063]
[1738249126635,0.12549,241.89,241.88,0.063]
[1738249126912,20.12549,241.89,241.88,0.063]
[1738249129421,20.25098,241.89,241.88,0.063]
[1738249132205,19.89410669,241.89,241.88,0.063]
[1738249132805,33.30595522,241.89,241.88,0.063]
[1738249134212,19.89410669,241.89,241.88,0.063]
[1738249134409,0.12549,241.89,241.88,0.063]
[1738249135120,20.12549,241.89,241.88,0.063]
[1738249135519,0.12549,241.89,241.88,0.063]
[1738249136026,19.64312669,241.95,241.88,19.70612669]
[1738249136203,19.64312669,242.02,241.92,19.64312669]
[1738249136520,19.64312669,242.0,241.92,19.64312669]
[1738249136724,0.25098,241.93,241.88,0.063]
[1738249136905,0.12549,241.91,241.88,0.063]
[1738249137323,19.64312669,241.96,241.88,0.063]
[1738249137623,0.12549,241.95,241.88,19.70612669]
[1738249137830,20.25098,241.89,241.88,0.063]
[1738249138923,0.25098,241.89,241.88,0.063]
[1738249141211,13.66282853,241.89,241.88,0.063]
[1738249142930,0.25098,241.89,241.88,0.063]
[1738249143512,19.64312669,241.98,241.88,0.68313114]
[1738249143714,19.64312669,241.98,241.9,19.64312669]
[1738249143918,13.53733853,241.97,241.9,19.64312669]
[1738249144232,0.12549,241.97,241.9,19.64312669]
[1738249144404,20.0,241.95,241.9,19.64312669]
[1738249144610,0.12549,241.93,241.88,19.70612669]
[1738249144916,19.64312669,242.01,241.92,19.64312669]
[1738249145324,0.03,242.03,241.96,19.64312669]
[1738249145506,0.03,242.03,241.98,19.64312669]
[1738249145702,0.28098,242.03,241.96,19.64312669]
[1738249145904,0.25098,241.94,241.9,19.64312669]
[1738249146211,0.12549,241.92,241.88,0.063]
[1738249146426,0.12549,241.92,241.88,19.70612669]
[1738249146427,0.25098,241.92,241.88,19.70612669]
[1738249146633,0.25098,241.92,241.88,0.063]
[1738249146819,0.25098,241.9,241.88,0.063]
[1738249147125,20.37647,241.89,241.88,0.063]
[1738249147828,0.03,242.03,241.88,19.70612669]
[1738249148021,0.03,242.03,241.96,19.64312669]
[1738249148825,20.0,242.02,241.96,19.64312669]
[1738249149127,0.25098,242.01,241.96,19.64312669]
[1738249150307,0.03,242.03,241.98,1.0]
[1738249150530,0.03,242.03,242.02,19.64312669]
[1738249151424,0.03,242.13,242.02,40.9058534]
[1738249151725,0.03,242.13,242.12,19.64312669]
[1738249151931,0.28098,242.13,242.12,19.64312669]
[1738249152105,0.15549,242.13,242.12,19.64312669]
[1738249152827,0.03,242.13,242.12,19.64312669]
[1738249153020,0.03,242.13,242.08,19.64312669]
[1738249153819,0.40647,242.13,242.09,0.61952941]
[1738249154012,0.40647,242.13,242.1,19.64312669]
[1738249154421,0.03,242.13,242.12,19.64312669]
[1738249156922,0.0001,242.13,242.12,29.11028225]
[1738249157123,0.03,242.28,242.14,1.0]
[1738249157340,0.15549,242.28,242.21,19.64312669]
[1738249157533,0.12549,242.24,242.21,19.64312669]
[1738249157736,0.12549,242.24,242.15,0.61921826]
[1738249157737,0.12549,242.23,242.17,19.64312669]
[1738249157926,0.12549,242.21,242.18,0.61930125]
[1738249158110,0.12549,242.21,242.17,19.64312669]
[1738249158518,0.25098,242.19,242.13,20.26242774]
[1738249159431,0.25098,242.19,242.13,19.64312669]
[1738249159746,0.25098,242.19,242.14,0.61942431]
[1738249160317,20.0,242.2,242.17,19.64312669]
[1738249160516,20.0,242.2,242.15,19.64312669]
[1738249160731,0.12549,242.19,242.16,0.61932458]
[1738249161819,0.15549,242.22,242.16,0.61932458]
[1738249162131,0.03,242.22,242.19,19.64312669]
[1738249162321,0.03,242.22,242.21,21.28022669]
[1738249163336,0.03,242.22,242.2,0.61915667]
[1738249163826,0.03,242.22,242.21,19.64312669]
[1738249164851,0.03,242.22,242.21,20.64312669]
[1738249166346,0.03,242.28,242.26,1.0]
[1738249166549,0.03,242.28,242.27,20.26203248]
[1738249168628,0.03,242.37,242.33,1.0]
[1738249168942,0.03,242.37,242.27,54.9832077]
[1738249168943,0.03,242.37,242.36,20.64312669]
[1738249169146,0.03,242.37,242.36,21.26179615]